bitfinex/quotes_BTCUSD_20230120
["timestamp","ask_amount","ask_price","bid_price","bid_amount"]
[1674223953733,0.01074664,21082.0,21081.0,2.53248126]
[1674223954246,0.01074664,21082.0,21081.0,2.41902233]
[1674223954729,0.01074664,21082.0,21081.0,2.53248126]
[1674223954984,0.01074664,21082.0,21081.0,2.84922368]
[1674223956264,0.01074664,21082.0,21081.0,3.01941207]
[1674223956528,0.01074664,21082.0,21081.0,2.53248126]
[1674223956783,0.01074664,21082.0,21081.0,3.30757748]
[1674223957040,0.01192717,21083.0,21082.0,0.27338748]
[1674223957311,0.01192717,21083.0,21082.0,3.13232197]
[1674223957589,0.01192717,21083.0,21082.0,4.01891317]
[1674223957837,0.01192717,21083.0,21082.0,4.13232197]
[1674223958102,0.01219113,21083.0,21082.0,4.13232197]
[1674223958334,0.01219113,21083.0,21082.0,4.72187443]
[1674223958612,0.01219113,21083.0,21082.0,4.80787443]
[1674223959134,0.01219113,21083.0,21082.0,4.50031036]
[1674223959880,0.01219113,21083.0,21082.0,4.33012197]
[1674223961773,0.01219113,21083.0,21082.0,4.50031036]
[1674223962573,0.01219113,21083.0,21082.0,4.33012197]
[1674223963118,0.01219113,21083.0,21082.0,4.50031036]
[1674223963382,0.01219113,21083.0,21082.0,4.33012197]
[1674223963648,0.01219113,21083.0,21082.0,4.69486695]
[1674223964236,0.01219113,21083.0,21082.0,4.80830167]
[1674223964709,0.01219113,21083.0,21082.0,4.69486695]
[1674223965263,0.01219113,21083.0,21082.0,4.92197585]
[1674223965777,0.01219113,21083.0,21082.0,4.75178746]
[1674223966034,0.01219113,21083.0,21082.0,5.0357746]
[1674223966309,0.01219113,21083.0,21082.0,4.92196667]
[1674223966855,0.01219113,21083.0,21082.0,4.60522425]
[1674223967053,0.01219113,21083.0,21082.0,4.93810407]
[1674223967602,0.01219113,21083.0,21082.0,4.92196667]
[1674223968375,0.01219113,21083.0,21082.0,4.71558739]
[1674223968630,0.01219113,21083.0,21082.0,4.92196667]
[1674223969953,0.01219113,21083.0,21082.0,4.93913512]
[1674223970221,0.01219113,21083.0,21082.0,4.71194541]
[1674223970813,0.01219113,21083.0,21082.0,4.39520299]
[1674223971032,0.01219113,21083.0,21082.0,4.71194541]
[1674223971572,0.01219113,21083.0,21082.0,4.39520299]
[1674223972114,0.01227792,21083.0,21082.0,4.39520299]
[1674223972378,0.01227792,21083.0,21082.0,4.50861531]
[1674223972636,0.01227792,21083.0,21082.0,4.69477696]
[1674223972893,0.01227792,21083.0,21082.0,5.0357746]
[1674223973165,0.01227792,21083.0,21082.0,5.05688658]
[1674223973701,0.01227792,21083.0,21082.0,4.62625609]
[1674223975014,0.01219113,21083.0,21082.0,4.39906638]
[1674223975235,0.01219113,21083.0,21082.0,4.62625609]
[1674223976296,0.01219113,21083.0,21082.0,4.80858489]
[1674223976572,0.01219113,21083.0,21082.0,4.68537273]
[1674223977086,0.41914852,21087.0,21082.0,4.68537273]
[1674223977087,0.41914852,21087.0,21083.0,0.15183492]
[1674223977367,0.41914852,21087.0,21086.0,0.1122]
[1674223977604,0.15,21089.0,21086.0,1.060696]
[1674223977820,0.40097303,21089.0,21087.0,0.3]
[1674223978076,0.55097303,21089.0,21087.0,0.49432097]
[1674223978374,0.40097303,21089.0,21087.0,0.3]
[1674223978898,0.40097303,21089.0,21087.0,0.77422]
[1674223980158,0.40097303,21089.0,21087.0,0.78122]
[1674223980421,0.40097303,21089.0,21087.0,1.255445]
[1674223980691,1.01204314,21090.0,21087.0,1.27459198]
[1674223980950,0.00029435,21088.0,21087.0,1.27459198]
[1674223981267,0.00029435,21088.0,21087.0,1.28309198]
[1674223981445,0.00029435,21088.0,21087.0,1.27609198]
[1674223981698,0.00029435,21088.0,21087.0,1.28309198]
[1674223981963,1.01204314,21090.0,21087.0,1.27609198]
[1674223982218,1.01204314,21090.0,21087.0,1.28109198]
[1674223983204,1.01204314,21090.0,21088.0,0.16761282]
[1674223983482,0.43259599,21090.0,21088.0,1.16032379]
[1674223983737,0.00939599,21090.0,21089.0,0.3]
[1674223984260,0.00939599,21090.0,21089.0,0.77418]
[1674223984529,0.00939599,21090.0,21089.0,1.25686]
[1674223985092,0.00980025,21090.0,21089.0,1.26486]
[1674223985349,0.00980025,21090.0,21089.0,1.28396562]
[1674223985892,0.00939599,21090.0,21089.0,1.28396562]
[1674223987295,0.00939599,21090.0,21089.0,1.27596562]
[1674223987573,0.00939599,21090.0,21089.0,1.36896562]
[1674223988384,0.00939599,21090.0,21089.0,1.27596562]
[1674223988915,0.00939599,21090.0,21089.0,1.36796562]
[1674223989942,0.03714867,21090.0,21089.0,1.36796562]
[1674223990989,0.03714867,21090.0,21089.0,1.06796562]
[1674223992286,0.03714867,21090.0,21089.0,1.36796562]
[1674224000169,0.03703008,21090.0,21089.0,1.36796562]
[1674224000422,0.03703008,21090.0,21089.0,1.34886]
[1674224000773,0.03703008,21090.0,21089.0,1.36681695]
[1674224001198,0.03703008,21090.0,21089.0,1.34886]
[1674224001460,0.03703008,21090.0,21089.0,1.79603399]
[1674224001722,0.03703008,21090.0,21089.0,2.72572004]
[1674224002049,0.0092774,21090.0,21089.0,1.77740242]
[1674224002514,0.0092774,21090.0,21089.0,1.47854891]
[1674224002737,0.0092774,21090.0,21089.0,1.77740242]
[1674224003504,0.0092774,21090.0,21089.0,1.47689842]
[1674224006032,0.01139279,21091.0,21090.0,0.2407226]
[1674224006297,0.01139279,21091.0,21090.0,1.4601386]
[1674224007332,0.01139279,21091.0,21090.0,1.5531386]
[1674224007852,0.01139279,21091.0,21090.0,1.4405386]
[1674224008647,0.01139279,21091.0,21090.0,1.45916132]
[1674224009421,0.01139279,21091.0,21090.0,0.98500332]
[1674224009739,0.5664972,21091.0,21090.0,0.1837226]
[1674224010000,0.80340623,21091.0,21090.0,0.1837226]
[1674224010520,0.95340623,21091.0,21090.0,0.1837226]
[1674224010802,1.90167623,21091.0,21090.0,0.1837226]
[1674224011100,2.01427623,21091.0,21090.0,0.1837226]
[1674224011356,3.01427623,21091.0,21090.0,0.1837226]
[1674224011883,3.01427623,21091.0,21090.0,0.0907226]
[1674224012435,2.54014123,21091.0,21090.0,0.0907226]
[1674224012734,3.01427623,21091.0,21090.0,0.0907226]
[1674224013013,2.54014123,21091.0,21090.0,0.0907226]
[1674224013267,2.55314123,21091.0,21090.0,0.0977226]
[1674224013523,3.02727623,21091.0,21090.0,0.0977226]
[1674224013835,3.02727623,21091.0,21090.0,0.0927226]
[1674224016794,3.56646557,21091.0,21090.0,0.0927226]
[1674224017322,3.65720149,21091.0,21090.0,0.0927226]
[1674224017641,2.86920149,21091.0,21090.0,0.0927226]
[1674224019082,2.98197427,21091.0,21090.0,0.0927226]
[1674224019635,3.89366726,21091.0,21090.0,0.0927226]
[1674224019893,4.43265583,21091.0,21090.0,0.0927226]
[1674224020203,4.65819997,21091.0,21090.0,0.0927226]
[1674224020415,6.45732352,21091.0,21090.0,0.0927226]
[1674224020703,5.49204853,21091.0,21090.0,0.01315545]
[1674224020961,5.93274853,21091.0,21090.0,0.01315545]
[1674224021225,5.91974853,21091.0,21090.0,0.00615545]
[1674224021530,5.99874853,21091.0,21090.0,0.00715545]
[1674224021803,6.22974853,21091.0,21090.0,0.00615545]
[1674224022064,6.00874853,21091.0,21090.0,0.00715545]
[1674224022340,6.30874853,21091.0,21090.0,0.00715545]
[1674224022861,6.59242843,21091.0,21090.0,0.00715545]
[1674224023127,6.29242843,21091.0,21090.0,0.00715545]
[1674224023398,6.51936776,21091.0,21090.0,0.00715545]
[1674224023659,6.59242843,21091.0,21090.0,0.00715545]
[1674224024215,6.29242843,21091.0,21090.0,0.00715545]
[1674224024483,6.15275439,21091.0,21090.0,0.00715545]
[1674224024771,6.56673358,21091.0,21090.0,0.00715545]
[1674224025041,6.28305368,21091.0,21090.0,0.00715545]
[1674224025306,6.56673358,21091.0,21090.0,0.00715545]
[1674224025880,6.20741018,21091.0,21090.0,0.00715545]
[1674224027190,6.52336652,21091.0,21090.0,0.00715545]
[1674224027456,5.27946652,21091.0,21090.0,0.00715545]
[1674224027714,4.83773224,21091.0,21090.0,0.00715545]
[1674224027976,5.06456652,21091.0,21090.0,0.00715545]
[1674224029905,4.83773224,21091.0,21090.0,0.00715545]
[1674224030175,4.95105984,21091.0,21090.0,0.00706208]
[1674224030435,4.35513005,21091.0,21090.0,0.00706208]
[1674224030705,4.46845747,21091.0,21090.0,0.00706208]
[1674224031249,4.88196433,21091.0,21090.0,0.00706208]
[1674224031534,5.09696433,21091.0,21090.0,0.00706208]
[1674224031800,5.57956652,21091.0,21090.0,0.00706208]
[1674224032064,5.71184427,21091.0,21090.0,0.00706208]
[1674224032549,5.93846985,21091.0,21090.0,0.00706208]
[1674224033100,5.93847002,21091.0,21090.0,0.00706208]
[1674224033359,5.93846829,21091.0,21090.0,0.001]
[1674224033668,1.5,21084.0,21081.0,0.00682135]
[1674224033883,0.96460997,21083.0,21081.0,0.02774455]
[1674224034118,0.41380497,21082.0,21081.0,0.02774455]
[1674224034627,1.025148,21083.0,21081.0,0.03974455]
[1674224034886,0.550833,21083.0,21081.0,0.02774455]
[1674224035159,0.31202072,21082.0,21081.0,0.03974455]
[1674224035432,0.32002072,21082.0,21081.0,0.02774455]
[1674224035677,0.00835572,21082.0,21081.0,0.03974455]
[1674224035933,0.33022272,21082.0,21081.0,0.03974455]
[1674224036481,0.33022272,21082.0,21081.0,0.01882135]
[1674224036767,0.32222272,21082.0,21081.0,0.00682135]
[1674224036976,0.33022272,21082.0,21081.0,0.01882135]
[1674224037554,0.48022272,21082.0,21081.0,0.01882135]
[1674224037785,0.00835572,21082.0,21081.0,0.03760248]
[1674224039675,0.00835572,21082.0,21081.0,0.33760248]
[1674224039958,0.00835572,21082.0,21081.0,0.03760248]
[1674224043729,0.00835572,21082.0,21081.0,1.29244345]
[1674224043994,0.00835572,21082.0,21081.0,1.40662248]
[1674224051828,0.00835572,21082.0,21081.0,2.44840528]
[1674224052085,1.5,21086.0,21082.0,0.15150741]
[1674224052346,1.5,21086.0,21085.0,0.1126]
[1674224052616,0.39128634,21088.0,21085.0,1.83541]
[1674224052884,0.39128634,21088.0,21086.0,0.1126]
[1674224053149,0.43027226,21087.0,21086.0,0.886836]
[1674224053424,1.88958161,21089.0,21086.0,0.895336]
[1674224053974,1.88958161,21089.0,21086.0,1.55540497]
[1674224054004,1.88958161,21089.0,21086.0,1.361084]
[1674224054276,1.50621779,21089.0,21086.0,1.454084]
[1674224054550,0.00621779,21089.0,21087.0,0.01757583]
[1674224054820,0.00621779,21089.0,21087.0,0.49179083]
[1674224055082,0.00047109,21088.0,21087.0,0.64179083]
[1674224055605,0.00047109,21088.0,21087.0,0.94179083]
[1674224055863,0.00047109,21088.0,21087.0,1.41601583]
[1674224056127,0.00047109,21088.0,21087.0,1.70741583]
[1674224056672,0.00047109,21088.0,21087.0,1.77441583]
[1674224059424,0.00047109,21088.0,21087.0,1.78292583]
[1674224059948,0.00047109,21088.0,21087.0,1.30870083]
[1674224060742,0.00047109,21088.0,21087.0,1.78292583]
[1674224062117,0.00047109,21088.0,21087.0,1.55852583]
[1674224062388,0.00047109,21088.0,21087.0,1.63472583]
[1674224064194,0.00047109,21088.0,21087.0,1.55852583]
[1674224068017,0.00047109,21088.0,21087.0,1.40852583]
[1674224069101,0.00047109,21088.0,21087.0,0.63430083]
[1674224069656,0.00047109,21088.0,21087.0,0.16007583]
[1674224069901,0.00047109,21088.0,21087.0,0.14007583]
[1674224070364,0.00047109,21088.0,21087.0,0.59007583]
[1674224070634,0.00047109,21088.0,21087.0,0.61430083]
[1674224071424,0.00047109,21088.0,21087.0,0.76430083]
[1674224071691,0.00047109,21088.0,21087.0,1.06430083]
[1674224072722,0.00047109,21088.0,21087.0,0.76430083]
[1674224073262,0.00047109,21088.0,21087.0,1.06430083]
[1674224076673,0.00047109,21088.0,21087.0,1.53852583]
[1674224077519,0.00047109,21088.0,21087.0,1.06430083]
[1674224077786,0.00047109,21088.0,21087.0,1.53852583]
[1674224078604,0.00047109,21088.0,21087.0,1.06430083]
[1674224087099,0.00621779,21089.0,21088.0,0.09952891]
[1674224087357,0.00621779,21089.0,21088.0,0.10802891]
[1674224089497,0.15821779,21089.0,21088.0,0.10802891]
[1674224090522,0.00821779,21089.0,21088.0,0.10802891]
[1674224092098,0.35513139,21089.0,21088.0,0.10802891]
[1674224093196,0.3489136,21089.0,21088.0,0.10802891]
[1674224094483,0.8227336,21089.0,21088.0,0.09952891]
[1674224094738,0.9347336,21089.0,21088.0,0.09952891]
[1674224095509,1.4089136,21089.0,21088.0,0.09952891]
[1674224096558,0.9347336,21089.0,21088.0,0.09952891]
[1674224096830,0.6847336,21089.0,21088.0,0.09952891]
[1674224097902,0.3609136,21089.0,21088.0,0.09952891]
[1674224098982,0.6796916,21089.0,21088.0,0.09952891]
[1674224099250,0.6745276,21089.0,21088.0,0.09952891]
[1674224099503,1.3092736,21089.0,21088.0,0.09952891]
[1674224099962,1.6329486,21089.0,21088.0,0.09952891]
[1674224099979,1.63159973,21089.0,21088.0,0.09952891]
[1674224100238,1.49732113,21089.0,21088.0,0.09952891]
[1674224100793,1.78053647,21089.0,21088.0,0.09952891]
[1674224101091,1.5539642,21089.0,21088.0,0.09952891]
[1674224101372,1.98071397,21089.0,21088.0,0.09952891]
[1674224102174,2.09443875,21089.0,21088.0,0.09952891]
[1674224102717,1.92450955,21089.0,21088.0,0.09952891]
[1674224103505,2.98710977,21089.0,21088.0,0.09952891]
[1674224103800,3.43914655,21089.0,21088.0,0.09952891]
[1674224104603,1.60083455,21089.0,21088.0,0.09952891]
[1674224104856,1.92654855,21089.0,21088.0,0.09952891]
[1674224105406,1.81282377,21089.0,21088.0,0.09952891]
[1674224105664,1.48710977,21089.0,21088.0,0.09952891]
[1674224105929,1.80922077,21089.0,21088.0,0.09952891]
[1674224106676,1.48710977,21089.0,21088.0,0.09952891]
[1674224106948,0.86992798,21090.0,21088.0,0.19830273]
[1674224106949,0.95678387,21090.0,21088.0,0.19830273]
[1674224107216,0.36888509,21090.0,21088.0,0.49830273]
[1674224108048,1.01139279,21091.0,21088.0,0.49830273]
[1674224108310,1.01139279,21091.0,21089.0,0.0987098]
[1674224108592,0.01139279,21091.0,21089.0,0.3987098]
[1674224108857,0.01139279,21091.0,21089.0,0.8728898]
[1674224109691,0.01139279,21091.0,21089.0,0.8798898]
[1674224110236,0.01139279,21091.0,21090.0,0.07402433]
[1674224111540,0.01139279,21091.0,21090.0,0.08102433]
[1674224112379,0.43623041,21091.0,21090.0,0.007]
[1674224113732,0.01139279,21091.0,21090.0,0.900338]
[1674224114266,0.01139279,21091.0,21090.0,1.074496]
[1674224114529,0.01139279,21091.0,21090.0,1.46375184]
[1674224114787,0.01139279,21091.0,21090.0,1.16375184]
[1674224115841,0.01139279,21091.0,21090.0,1.46375184]
[1674224116394,0.01139279,21091.0,21090.0,2.46375184]
[1674224116914,0.01139279,21091.0,21090.0,2.45675184]
[1674224117216,0.01139279,21091.0,21090.0,2.52275184]
[1674224118037,0.01139279,21091.0,21090.0,2.45675184]
[1674224118294,0.01139279,21091.0,21090.0,2.07559384]
[1674224118569,0.01139279,21091.0,21090.0,1.77559384]
[1674224118877,0.01139279,21091.0,21090.0,2.07559384]
[1674224119396,0.01139279,21091.0,21090.0,1.77559384]
[1674224119663,0.01139279,21091.0,21090.0,2.07559384]
[1674224121542,0.01132859,21091.0,21090.0,2.07559384]
[1674224122344,0.01132859,21091.0,21090.0,1.77559384]
[1674224122642,0.01132859,21091.0,21090.0,2.07559384]
[1674224124256,0.01132859,21091.0,21090.0,1.77559384]
[1674224124523,0.01132859,21091.0,21090.0,2.07559384]
[1674224125302,0.01132859,21091.0,21090.0,1.19075584]
[1674224125566,0.16132859,21091.0,21090.0,1.19075584]
[1674224126365,0.16132859,21091.0,21090.0,1.1015]
[1674224126818,0.01132859,21091.0,21090.0,1.575658]
[1674224126819,0.01132859,21091.0,21090.0,1.875658]
[1674224129244,0.01132859,21091.0,21090.0,1.575658]
[1674224130599,0.01132859,21091.0,21090.0,1.1015]
[1674224130860,0.47553171,21091.0,21090.0,1.093]
[1674224131123,0.94971471,21091.0,21090.0,1.093]
[1674224132439,0.94971471,21091.0,21090.0,0.093]
[1674224132958,0.99461605,21091.0,21090.0,0.093]
[1674224134308,1.46875105,21091.0,21090.0,0.093]
[1674224134594,1.94288605,21091.0,21090.0,0.093]
[1674224135123,1.59058293,21091.0,21090.0,0.093]
[1674224135386,2.01637935,21091.0,21090.0,0.093]
[1674224136518,1.54224435,21091.0,21090.0,0.093]
[1674224136793,2.01637935,21091.0,21090.0,0.093]
[1674224137621,2.12887935,21091.0,21090.0,0.093]
[1674224140284,1.65474435,21091.0,21090.0,0.093]
[1674224140538,2.12887935,21091.0,21090.0,0.093]
[1674224144490,2.12887935,21091.0,21090.0,0.09288717]
[1674224147489,2.12887935,21091.0,21090.0,0.09279941]
[1674224149748,1.97887935,21091.0,21090.0,0.09279941]
[1674224150259,1.50474435,21091.0,21090.0,0.09279941]
[1674224153953,1.03060935,21091.0,21090.0,0.09279941]
[1674224154513,1.50474435,21091.0,21090.0,0.09279941]
[1674224154737,1.03060935,21091.0,21090.0,0.09279941]
[1674224156564,0.91870935,21091.0,21090.0,0.09279941]
[1674224156825,0.16872993,21091.0,21090.0,0.09279941]
[1674224161563,0.16872993,21091.0,21090.0,0.18676632]
[1674224161831,0.16872993,21091.0,21090.0,0.48676632]
[1674224161832,0.05622993,21091.0,21090.0,0.48676632]
[1674224163443,0.05122993,21091.0,21090.0,1.44358232]
[1674224164744,0.05122993,21091.0,21090.0,0.96942432]
[1674224165192,0.05122993,21091.0,21090.0,1.44358232]
[1674224174125,0.05122993,21091.0,21090.0,1.55538232]
[1674224177268,0.05122993,21091.0,21090.0,2.52142981]
[1674224177543,0.05122993,21091.0,21090.0,2.63472042]
[1674224178095,0.05122993,21091.0,21090.0,4.11610395]
[1674224178366,0.05122993,21091.0,21090.0,3.63472042]
[1674224178910,0.05122993,21091.0,21090.0,3.71748072]
[1674224179181,0.05122993,21091.0,21090.0,3.63472042]
[1674224179548,0.05122993,21091.0,21090.0,3.61666991]
[1674224179550,0.05122993,21091.0,21090.0,3.63472042]
[1674224179779,0.05122993,21091.0,21090.0,3.80477278]
[1674224180001,0.01166039,21092.0,21091.0,0.19877007]
[1674224180222,0.01166039,21092.0,21091.0,1.56714007]
[1674224180937,0.01166039,21092.0,21091.0,1.66996638]
[1674224181160,0.01166039,21092.0,21091.0,1.63314007]
[1674224181387,0.01166039,21092.0,21091.0,1.7323239]
[1674224181634,0.01166039,21092.0,21091.0,1.63314007]
[1674224181870,0.01166039,21092.0,21091.0,1.71951854]
[1674224182493,0.01166039,21092.0,21091.0,1.74564007]
[1674224182749,0.01166039,21092.0,21091.0,1.84020818]
[1674224183009,0.01166039,21092.0,21091.0,1.74564007]
[1674224183271,0.01166039,21092.0,21091.0,1.84878817]
[1674224183529,0.01166039,21092.0,21091.0,1.74564007]
[1674224184283,0.01166039,21092.0,21091.0,2.80709482]
[1674224184547,0.01166039,21092.0,21091.0,2.62780421]
[1674224184805,0.01166039,21092.0,21091.0,2.72080421]
[1674224185368,0.01166039,21092.0,21091.0,2.81280421]
[1674224185623,0.01166039,21092.0,21091.0,2.92609482]
[1674224186467,0.01166039,21092.0,21091.0,2.81280421]
[1674224187005,0.01166039,21092.0,21091.0,2.62780421]
[1674224187268,0.01166039,21092.0,21091.0,1.77164007]
[1674224189403,0.01166039,21092.0,21091.0,2.83304326]
[1674224189669,0.01192717,21095.0,21092.0,0.15198829]
[1674224190187,0.01192717,21095.0,21093.0,1.43077]
[1674224190190,0.01192717,21095.0,21094.0,0.1125]
[1674224190444,0.01192717,21095.0,21094.0,2.060636]
[1674224190708,0.01192717,21095.0,21094.0,2.069136]
[1674224192072,0.01192717,21095.0,21094.0,2.162136]
[1674224192345,0.01192717,21095.0,21094.0,2.24497793]
[1674224192654,0.01192717,21095.0,21094.0,2.54497793]
[1674224194307,0.01192717,21095.0,21094.0,2.65747793]
[1674224197999,0.01192717,21095.0,21094.0,2.56447793]
[1674224198258,0.01192717,21095.0,21094.0,2.65747793]
[1674224198518,0.01192717,21095.0,21094.0,2.56447793]
[1674224198778,0.01192717,21095.0,21094.0,2.65747793]
[1674224200864,0.01192717,21095.0,21094.0,2.574636]
[1674224201090,0.01192717,21095.0,21094.0,2.64881979]
[1674224201514,0.01192717,21095.0,21094.0,2.55581979]
[1674224201919,0.01192717,21095.0,21094.0,2.64781979]
[1674224202174,0.01192717,21095.0,21094.0,2.573636]
[1674224202859,0.01192717,21095.0,21094.0,2.67360515]
[1674224205893,0.01192717,21095.0,21094.0,2.37360515]
[1674224206130,0.01192717,21095.0,21094.0,2.048636]
[1674224206584,0.01192717,21095.0,21094.0,1.574568]
[1674224207065,0.41103257,21095.0,21094.0,1.574568]
[1674224207303,0.71719657,21095.0,21094.0,1.574568]
[1674224207975,0.72139357,21095.0,21094.0,1.574568]
[1674224208216,0.41103257,21095.0,21094.0,1.0085]
[1674224208435,0.72853657,21095.0,21094.0,1.0795]
[1674224208675,0.41103257,21095.0,21094.0,1.0795]
[1674224209895,0.41094266,21095.0,21094.0,1.0795]
[1674224211234,0.41094266,21095.0,21094.0,1.553568]
[1674224211685,0.01183726,21095.0,21094.0,1.853568]
[1674224211914,0.01183726,21095.0,21094.0,2.42584783]
[1674224213485,0.01183726,21095.0,21094.0,2.12584783]
[1674224214021,0.01183726,21095.0,21094.0,2.42584783]
[1674224219158,0.01418756,21096.0,21095.0,1.28984517]
[1674224220671,0.01518756,21096.0,21095.0,1.28984517]
[1674224221443,0.01518756,21096.0,21095.0,1.58984517]
[1674224221971,0.01518756,21096.0,21095.0,1.28984517]
[1674224222786,0.01518756,21096.0,21095.0,1.58984517]
[1674224222988,0.01518756,21096.0,21095.0,1.28984517]
[1674224223282,0.01518756,21096.0,21095.0,1.58984517]
[1674224223544,0.01518756,21096.0,21095.0,1.28984517]
[1674224223799,0.01518756,21096.0,21095.0,1.58984517]
[1674224225095,0.0434907,21096.0,21095.0,1.58984517]
[1674224226155,0.04380858,21096.0,21095.0,1.58984517]
[1674224226680,0.04380858,21096.0,21095.0,1.28984517]
[1674224227201,0.04380858,21096.0,21095.0,1.76389017]
[1674224227723,0.04380858,21096.0,21095.0,2.06389017]
[1674224229307,0.04380858,21096.0,21095.0,2.06371084]
[1674224229852,0.04380858,21096.0,21095.0,2.53775584]
[1674224232954,0.04380858,21096.0,21095.0,2.23775584]
[1674224234545,0.04380858,21096.0,21095.0,1.76371084]
[1674224235592,0.04380858,21096.0,21095.0,2.06371084]
[1674224236914,0.04380858,21096.0,21095.0,1.76371084]
[1674224237376,0.04380858,21096.0,21095.0,2.06371084]
[1674224237634,0.04380858,21096.0,21095.0,1.76371084]
[1674224238470,0.04380858,21096.0,21095.0,2.06371084]
[1674224238926,0.04380858,21096.0,21095.0,1.76371084]
[1674224240216,0.04380858,21096.0,21095.0,2.06371084]
[1674224240748,0.04380858,21096.0,21095.0,1.76371084]
[1674224241298,0.04380858,21096.0,21095.0,2.06371084]
[1674224241549,0.04380858,21096.0,21095.0,1.76371084]
[1674224243282,0.04380858,21096.0,21095.0,2.06371084]
[1674224243797,0.04380858,21096.0,21095.0,1.76371084]
[1674224247113,1.5,21097.0,21095.0,1.76371084]
[1674224247674,1.5,21097.0,21096.0,0.11947732]
[1674224248465,1.827825,21097.0,21096.0,0.11947732]
[1674224249287,1.833825,21097.0,21096.0,0.12447732]
[1674224249541,1.829009,21097.0,21096.0,0.12447732]
[1674224249802,1.94273378,21097.0,21096.0,0.005]
[1674224250083,3.0465043,21097.0,21096.0,0.005]
[1674224250368,3.07703082,21097.0,21096.0,0.005]
[1674224250905,3.60740287,21097.0,21096.0,0.005]
[1674224251172,3.60780018,21097.0,21096.0,0.005]
[1674224251974,3.07742813,21097.0,21096.0,0.005]
[1674224252228,3.24794632,21097.0,21096.0,0.005]
[1674224252482,3.55142913,21097.0,21096.0,0.005]
[1674224253815,3.72191145,21097.0,21096.0,0.005]
[1674224254354,3.24791045,21097.0,21096.0,0.005]
[1674224254617,3.32451209,21097.0,21096.0,0.005]
[1674224255133,3.24790919,21097.0,21096.0,0.005]
[1674224255674,3.72191019,21097.0,21096.0,0.005]
[1674224259883,3.63489884,21097.0,21096.0,0.005]
[1674224260149,3.63489884,21097.0,21096.0,0.105]
[1674224260406,3.46450336,21097.0,21096.0,0.105]
[1674224260682,3.63489349,21097.0,21096.0,0.105]
[1674224261740,3.53489349,21097.0,21096.0,0.105]
[1674224263639,3.63489349,21097.0,21096.0,0.105]
[1674224264144,3.52042122,21097.0,21096.0,0.105]
[1674224264403,3.74699349,21097.0,21096.0,0.105]
[1674224264737,2.24699349,21097.0,21096.0,0.105]
[1674224266109,2.91941719,21097.0,21096.0,0.105]
[1674224266368,2.61613612,21097.0,21096.0,0.105]
[1674224266623,2.91613612,21097.0,21096.0,0.105]
[1674224266887,2.91613612,21097.0,21096.0,0.01836463]
[1674224269849,2.20215371,21097.0,21096.0,0.01836463]
[1674224270113,2.63463502,21097.0,21096.0,0.01836463]
[1674224271370,2.63415771,21097.0,21096.0,0.01836463]
[1674224271651,3.1167599,21097.0,21096.0,0.01836463]
[1674224273777,3.1867599,21097.0,21096.0,0.02036463]
[1674224274041,3.7924599,21097.0,21096.0,0.01836463]
[1674224274317,3.8616599,21097.0,21096.0,0.02036463]
[1674224275338,3.86207446,21097.0,21096.0,0.02036463]
[1674224277148,3.36110764,21097.0,21096.0,0.002]
[1674224278430,2.68680764,21097.0,21096.0,0.002]
[1674224278683,2.68680764,21097.0,21096.0,0.000829]
[1674224279948,2.97028987,21097.0,21096.0,0.000829]
[1674224281307,2.67028987,21097.0,21096.0,0.000829]
[1674224281570,3.35690746,21097.0,21096.0,0.000829]
[1674224281840,2.67511287,21097.0,21096.0,0.000829]
[1674224282124,3.35332519,21097.0,21096.0,0.000829]
[1674224282384,2.90190133,21097.0,21096.0,0.000829]
[1674224282649,3.29770515,21097.0,21096.0,0.000829]
[1674224283085,2.90190133,21097.0,21096.0,0.000829]
[1674224283350,2.97511287,21097.0,21096.0,0.000829]
[1674224283874,2.67511287,21097.0,21096.0,0.000829]
[1674224284101,2.97511287,21097.0,21096.0,0.000829]
[1674224285142,3.45771506,21097.0,21096.0,0.000829]
[1674224285438,3.17423283,21097.0,21096.0,0.000829]
[1674224285904,2.67515886,21097.0,21096.0,0.000829]
[1674224286165,2.35907014,21097.0,21096.0,0.000829]
[1674224286723,2.92347146,21097.0,21096.0,0.00016315]
[1674224286972,2.58589068,21097.0,21096.0,0.00016315]
[1674224287790,2.92012761,21097.0,21096.0,0.00016315]
[1674224288066,2.58589068,21097.0,21096.0,0.00016315]
[1674224288602,2.35907014,21097.0,21096.0,0.00016315]
[1674224288867,2.5859288,21097.0,21096.0,0.00016315]
[1674224289131,2.35907014,21097.0,21096.0,0.00016315]
[1674224290961,2.97515886,21097.0,21096.0,0.00016315]
[1674224290962,3.45146901,21097.0,21096.0,0.00016315]
[1674224291204,2.67515886,21097.0,21096.0,0.00016315]
[1674224291956,2.07554192,21097.0,21096.0,0.00016315]
[1674224295831,2.47850537,21097.0,21096.0,0.00016315]
[1674224296087,2.07554192,21097.0,21096.0,0.00016315]
[1674224296662,2.52349925,21097.0,21096.0,0.00016315]
[1674224296922,2.07554192,21097.0,21096.0,0.00016315]
[1674224298013,2.42921162,21097.0,21096.0,0.00016315]
[1674224298588,2.42921162,21097.0,21096.0,0.30516412]
[1674224298795,1.91890916,21097.0,21096.0,0.22143315]
[1674224299030,0.57182414,21097.0,21096.0,0.41575412]
[1674224299282,0.07041456,21097.0,21096.0,0.89827712]
[1674224299561,1.57041456,21097.0,21096.0,1.61742563]
[1674224299799,1.50041456,21097.0,21096.0,1.91362325]
[1674224300065,1.572,21097.0,21096.0,1.59906277]
[1674224300638,0.079,21097.0,21096.0,1.61806277]
[1674224301160,1.51378477,21098.0,21096.0,1.59706277]
[1674224301414,0.01378477,21098.0,21097.0,0.0085]
[1674224301662,0.01378477,21098.0,21097.0,0.11918]
[1674224302171,0.01378477,21098.0,21097.0,0.593181]
[1674224302454,1.51378477,21098.0,21097.0,0.11918]
[1674224302678,1.51378477,21098.0,21097.0,0.25201672]
[1674224302923,1.51778477,21098.0,21097.0,0.28301672]
[1674224303436,1.51778477,21098.0,21097.0,0.28336816]
[1674224303718,1.51078477,21098.0,21097.0,0.75736916]
[1674224303954,1.51078477,21098.0,21097.0,0.28336816]
[1674224304175,1.51078477,21098.0,21097.0,0.17233672]
[1674224304422,0.01078477,21098.0,21097.0,0.17233672]
[1674224306685,0.01078477,21098.0,21097.0,0.64633772]
[1674224306934,0.01078477,21098.0,21097.0,0.17233672]
[1674224307435,0.16078477,21098.0,21097.0,0.17233672]
[1674224307958,0.16078477,21098.0,21097.0,0.17290728]
[1674224308448,0.16078477,21098.0,21097.0,0.28520728]
[1674224309455,0.01078477,21098.0,21097.0,0.28520728]
[1674224309718,0.16078477,21098.0,21097.0,0.28520728]
[1674224310838,0.16078477,21098.0,21097.0,0.03157056]
[1674224310839,1.51132282,21098.0,21097.0,0.03157056]
[1674224311105,1.84113682,21098.0,21097.0,0.03157056]
[1674224314135,2.31833851,21098.0,21097.0,0.03157056]
[1674224316067,2.43188756,21098.0,21097.0,0.03157056]
[1674224316330,2.95825751,21098.0,21097.0,0.03157056]